bitfinex-derivatives/quotes_ETHF0:USTF0_20250918
["timestamp","ask_amount","ask_price","bid_price","bid_amount"]
[1758217578448,0.80170258,4610.5,4610.4,3.4278]
[1758217578944,1.92181468,4612.3,4610.4,3.4278]
[1758217578945,4.74525174,4612.0,4610.4,7.6447]
[1758217579140,0.80209562,4611.9,4611.3,0.3901]
[1758217579347,4.74525174,4612.6,4611.3,0.3901]
[1758217579348,0.22988832,4611.8,4611.4,0.22]
[1758217579547,3.2078,4612.6,4611.4,0.22]
[1758217579548,0.22988832,4611.7,4611.4,0.22]
[1758217579743,0.22988832,4611.6,4611.1,3.2078]
[1758217579943,0.22988832,4611.5,4611.2,0.22]
[1758217580144,0.21683,4612.5,4611.1,3.2078]
[1758217580348,0.44673735,4612.4,4611.2,0.22]
[1758217580544,0.22989735,4612.3,4611.1,3.2078]
[1758217580743,0.22989735,4612.2,4611.3,0.22]
[1758217580944,0.22989735,4612.1,4611.3,0.22]
[1758217581251,0.22989735,4612.0,4611.3,0.22]
[1758217581447,0.22989735,4611.9,4611.3,0.22]
[1758217581747,0.22989735,4611.8,4611.3,0.22]
[1758217581944,0.22989735,4611.7,4611.6,3.2078]
[1758217582139,0.22989735,4611.7,4611.6,0.22]
[1758217583953,3.2078,4612.6,4611.6,0.22]
[1758217584154,0.22946471,4612.5,4611.6,0.22]
[1758217584349,0.22946471,4612.4,4611.6,0.22]
[1758217584555,0.22946471,4612.3,4611.6,0.22]
[1758217584855,0.22946471,4612.2,4611.7,0.39007]
[1758217585152,3.2078,4612.6,4611.7,0.39007]
[1758217585153,3.2078,4612.6,4611.7,3.2078]
[1758217585452,40.8,4612.9,4611.9,0.39005]
[1758217585652,0.22922054,4612.8,4612.0,0.22]
[1758217585854,0.22922054,4612.7,4612.1,0.22]
[1758217586050,40.8,4612.9,4612.1,0.22]
[1758217586356,40.8,4612.9,4611.7,3.2078]
[1758217586357,0.22920691,4612.8,4611.8,0.39006]
[1758217586547,0.22920691,4612.7,4611.9,0.22]
[1758217586746,40.8,4612.9,4611.9,0.22]
[1758217586949,0.22911011,4612.8,4611.9,0.22]
[1758217587149,0.22911011,4612.7,4611.9,0.22]
[1758217587344,40.8,4612.9,4611.9,0.22]
[1758217587545,0.22903362,4612.8,4611.9,0.22]
[1758217587752,40.8,4612.9,4611.9,0.22]
[1758217587954,0.22903362,4612.8,4611.9,0.22]
[1758217588147,40.8,4612.9,4611.9,0.22]
[1758217588346,0.22903161,4612.8,4611.9,0.22]
[1758217588554,40.8,4612.9,4611.9,0.22]
[1758217588755,0.22898041,4612.8,4612.0,0.22]
[1758217588959,40.8,4612.9,4612.0,0.22]
[1758217589151,0.22897989,4612.8,4612.0,0.22]
[1758217589346,40.8,4612.9,4612.0,0.22]
[1758217589552,0.22893651,4612.8,4612.0,0.22]
[1758217589746,0.44573946,4612.7,4611.9,0.22]
[1758217589954,0.22892292,4612.6,4611.9,0.22]
[1758217590155,0.22892292,4612.5,4611.9,0.22]
[1758217590452,0.22891055,4612.4,4611.7,3.2078]
[1758217590658,0.22890636,4612.3,4611.6,0.22]
[1758217590856,0.22890636,4612.2,4611.6,0.22]
[1758217591057,0.56724208,4612.1,4611.6,0.22]
[1758217591257,0.56724208,4612.0,4611.6,0.22]
[1758217591452,0.56724208,4611.9,4611.6,0.22]
[1758217591655,0.56724208,4611.8,4611.6,0.22]
[1758217591856,0.56724208,4611.7,4611.6,0.22]
[1758217594257,0.56724208,4611.7,4611.5,0.22]
[1758217594460,0.56724208,4611.6,4611.5,0.22]
[1758217595151,0.56724208,4611.6,4611.2,3.2078]
[1758217595359,0.56724208,4611.5,4611.4,0.39009]
[1758217595553,3.2078,4612.2,4611.5,0.39009]
[1758217595859,0.56740859,4612.1,4611.3,0.22]
[1758217596060,0.56740859,4612.0,4611.4,0.3901]
[1758217596259,0.56740859,4611.9,4611.4,0.3901]
[1758217596557,0.56740859,4611.8,4611.3,0.22]
[1758217596749,0.56740859,4611.7,4611.3,0.6101]
[1758217596955,0.56740859,4611.6,4611.3,0.6101]
[1758217597156,0.56740859,4611.5,4611.3,0.6101]
[1758217597351,3.2078,4612.2,4611.3,0.6101]
[1758217597561,0.56754575,4612.1,4611.3,0.22]
[1758217597861,0.56754575,4612.0,4611.3,0.6101]
[1758217598056,0.56754575,4611.9,4611.3,0.6101]
[1758217598257,0.56754575,4611.8,4611.4,0.3901]
[1758217598457,0.56754575,4611.7,4611.4,0.3901]
[1758217598659,0.56754575,4611.6,4611.4,0.3901]
[1758217598863,0.56754575,4611.5,4611.4,0.3901]
[1758217599059,3.2078,4612.2,4611.6,0.39008]
[1758217599362,0.56757359,4612.1,4611.8,3.59786]
[1758217599558,0.56757359,4612.0,4611.9,0.39005]
[1758217599863,44.0078,4612.9,4611.8,3.2078]
[1758217599864,3.2078,4612.9,4611.8,3.2078]
[1758217600055,0.5677185,4612.8,4612.3,3.2078]
[1758217600361,0.5677185,4612.7,4612.3,3.4278]
[1758217600564,0.5677185,4612.6,4612.3,3.4278]
[1758217600756,0.5677185,4612.5,4612.3,3.4278]
[1758217600958,0.5677185,4612.4,4612.3,3.4278]
[1758217613360,1.53745174,4613.5,4612.7,0.38999]
[1758217613561,3.2078,4613.9,4612.9,3.2078]
[1758217613562,0.2295012,4613.4,4612.9,3.2078]
[1758217613760,4.74525174,4613.9,4612.9,3.2078]
[1758217613761,0.2295012,4613.3,4613.0,0.22]
[1758217613961,0.2295012,4613.2,4613.0,0.22]
[1758217614167,0.2295012,4613.1,4613.0,0.22]
[1758217617067,0.2295012,4613.1,4612.9,3.2078]
[1758217619864,0.2295012,4611.8,4611.7,0.0216]
[1758217620065,0.2295012,4611.8,4611.2,0.22]
[1758217620265,0.2295012,4611.7,4610.8,3.2078]
[1758217620475,0.2295012,4611.6,4610.9,0.22]
[1758217620772,0.2295012,4611.5,4610.9,0.22]
[1758217621072,0.2295012,4611.4,4610.8,3.2078]
[1758217621373,0.2295012,4611.3,4610.8,3.2078]
[1758217621566,0.2295012,4611.2,4610.8,3.2078]
[1758217621767,0.2295012,4611.1,4610.8,3.2078]
[1758217621967,0.2295012,4611.0,4610.8,3.2078]
[1758217622164,0.21686,4611.7,4610.8,3.2078]
[1758217622368,0.44628361,4611.6,4610.8,3.2078]
[1758217622573,41.02942361,4611.5,4610.8,3.2078]
[1758217622771,0.22942361,4611.4,4610.8,3.2078]
[1758217622977,0.22942361,4611.3,4610.8,3.2078]
[1758217623169,0.22942361,4611.2,4610.8,3.59794]
[1758217623478,40.8,4611.5,4610.8,3.2078]
[1758217623671,0.22934732,4611.4,4611.0,0.39013]
[1758217623869,0.22934732,4611.3,4611.1,0.22]
[1758217624072,40.8,4611.7,4611.1,0.22]
[1758217624376,0.22936234,4611.6,4611.0,0.22]
[1758217624575,0.22936234,4611.5,4611.0,0.22]
[1758217624771,0.22936234,4611.4,4610.9,0.0216]
[1758217624966,0.22936234,4611.3,4611.0,0.22]
[1758217625171,0.22936234,4611.2,4611.0,0.22]
[1758217625467,0.79547746,4611.1,4611.0,0.22]
[1758217625979,0.79547746,4611.1,4610.9,0.0216]
[1758217626181,0.79547746,4611.0,4610.9,0.0216]
[1758217627075,2.46187746,4611.0,4610.9,0.0216]
[1758217627782,2.46187746,4611.0,4610.3,3.4278]
[1758217627982,1.4954,4610.5,4610.4,1.0603]
[1758217628188,2.29087746,4610.5,4610.4,1.0603]
[1758217628582,2.29055786,4610.5,4610.4,1.0603]
[1758217629282,2.06151512,4610.5,4610.4,1.0603]
[1758217629780,1.4954,4610.4,4610.3,3.2078]
[1758217630275,2.06089539,4610.4,4610.0,0.851]
[1758217630481,2.06089539,4610.4,4609.5,0.2367]
[1758217630482,0.8579,4609.6,4609.5,0.2367]
[1758217630778,1.4954,4609.6,4609.5,0.631]
[1758217630983,1.4954,4609.6,4609.5,1.0603]
[1758217631176,0.8579,4609.6,4609.5,1.7263]
[1758217631577,1.4954,4609.6,4609.5,1.7263]
[1758217632086,1.4954,4609.6,4609.5,1.4896]
[1758217632683,1.4954,4609.6,4609.3,0.0216]
[1758217632886,0.6375,4609.5,4609.3,0.6526]
[1758217633076,1.72406133,4609.4,4609.3,0.0216]
[1758217633392,2.05972424,4609.4,4609.3,0.6526]
[1758217633589,2.05972424,4609.4,4609.3,1.0819]
[1758217634087,2.05972424,4609.4,4608.8,0.631]
[1758217634287,1.4954,4609.4,4609.3,0.4293]
[1758217634487,0.22,4609.5,4609.3,1.4896]
[1758217634785,0.6543,4609.5,4609.4,1.4896]
[1758217635588,0.4343,4609.5,4609.4,1.4896]
[1758217636085,0.8579,4609.5,4609.4,1.4896]
[1758217636483,1.4954,4609.5,4609.4,0.631]
[1758217636681,0.6375,4609.4,4609.2,3.8604]
[1758217636890,0.8579,4609.3,4609.2,4.719]
[1758217638085,41.2343,4609.9,4609.8,0.8586]
[1758217638284,42.86378665,4609.9,4609.8,1.4896]
[1758217638680,1.00268665,4609.9,4609.8,1.4896]
[1758217638887,0.22,4610.1,4609.8,1.4896]
[1758217639193,41.4543,4610.1,4610.0,1.7263]
[1758217639388,42.44629328,4610.1,4610.0,1.7263]
[1758217639586,1.42629328,4610.1,4610.0,1.7263]
[1758217639793,1.64629328,4610.1,4610.0,1.7263]
[1758217639994,1.42629328,4610.1,4610.0,1.7263]
[1758217640294,1.00269328,4610.1,4610.0,1.7263]
[1758217641589,3.2078,4610.7,4610.5,0.2367]
[1758217641782,3.2078,4610.7,4610.6,1.4896]
[1758217641987,3.77655303,4610.7,4610.6,1.4896]
[1758217642185,3.2078,4611.6,4610.7,0.631]
[1758217642497,40.8,4611.9,4610.6,4.0664]
[1758217642498,0.56892467,4611.5,4611.4,1.4896]
[1758217642687,4.0653,4612.1,4611.5,0.2367]
[1758217642890,1.4954,4611.7,4611.6,1.0603]
[1758217643192,0.8579,4611.3,4611.2,1.7096]
[1758217643586,0.6375,4612.0,4611.5,1.0953]
[1758217643788,0.22,4611.8,4611.5,1.0953]
[1758217643989,0.4343,4611.6,4611.5,1.0953]
[1758217644189,0.8579,4611.6,4611.5,1.7263]
[1758217644691,0.8579,4611.4,4611.3,0.631]
[1758217644996,0.8579,4611.2,4611.0,0.22]
[1758217645295,1.4954,4611.1,4611.0,0.851]
[1758217645498,1.4954,4611.1,4611.0,1.2803]
[1758217645993,2.0654653,4611.1,4611.0,1.2803]
[1758217646788,1.4954,4610.7,4609.8,3.2078]
[1758217647000,0.8579,4610.2,4610.1,1.4896]
[1758217647195,1.4954,4610.2,4610.1,1.4896]
[1758217647402,1.4954,4609.9,4609.6,0.631]
[1758217647601,0.8579,4609.7,4609.3,0.631]
[1758217647895,0.8579,4609.4,4609.3,1.0603]
[1758217648089,2.06652486,4609.4,4609.3,1.0603]
[1758217649592,1.42902486,4609.4,4609.3,1.4896]
[1758217650196,0.57112486,4609.4,4609.3,1.4896]
[1758217650393,3.6421,4610.7,4610.6,1.4896]
[1758217650603,3.43617455,4610.7,4610.6,1.4896]
[1758217650893,3.4278,4611.2,4610.7,0.631]
[1758217651198,4.7032,4611.2,4611.1,1.0603]
[1758217651401,3.43626593,4611.2,4611.1,1.4896]
[1758217652093,0.22846593,4611.2,4611.1,1.4896]
[1758217653600,0.6543,4611.7,4611.6,0.4293]
[1758217653794,1.30641084,4611.7,4611.6,1.0603]
[1758217653996,1.94391084,4611.7,4611.1,0.631]
[1758217654295,1.94391084,4611.7,4611.1,1.4896]
[1758217654296,0.4343,4611.2,4611.1,1.4896]
[1758217654688,0.4343,4611.2,4610.7,3.4278]
[1758217654689,1.4954,4611.2,4610.7,3.4278]
[1758217654894,0.6375,4611.1,4610.8,0.631]
[1758217655094,1.4954,4610.9,4610.8,1.0603]
[1758217656394,0.8579,4610.9,4610.8,1.4646]
[1758217657391,1.4946,4610.9,4610.8,1.0603]
[1758217657595,0.6367,4610.8,4610.7,0.22]
[1758217657793,0.8253,4610.6,4610.1,3.2078]
[1758217658104,0.8253,4610.3,4610.2,0.9983]
[1758217658298,0.8253,4610.3,4610.2,1.4026]
[1758217658697,1.462,4610.3,4610.2,1.4026]
[1758217659395,0.8253,4610.3,4609.9,0.22]
[1758217659595,0.4327,4609.7,4609.6,1.4026]
[1758217659995,0.6367,4610.2,4609.7,0.587]
[1758217660198,1.462,4610.2,4610.1,0.9983]
[1758217660903,0.8253,4610.2,4610.1,1.4026]
[1758217661207,1.462,4610.2,4610.1,1.4026]
[1758217661703,0.4327,4610.2,4610.1,1.4026]
[1758217662206,3.2078,4610.6,4610.1,1.4026]
[1758217662404,0.56938038,4610.5,4610.4,1.4026]
[1758217662906,1.39468038,4610.5,4610.4,1.4026]
[1758217663103,0.6367,4610.4,4610.1,0.587]
[1758217663292,1.462,4610.2,4610.1,0.587]
[1758217663499,2.03138038,4610.2,4610.1,0.9983]
[1758217663904,1.39468038,4610.2,4610.1,1.4026]
[1758217664206,0.56938038,4610.2,4610.1,1.4026]
[1758217664411,0.56938038,4610.2,4610.1,4.6104]
[1758217664599,3.2078,4611.4,4611.0,1.0634]
[1758217664799,42.24869421,4611.1,4611.0,1.6504]
[1758217665105,42.64129421,4611.1,4611.0,1.6504]
[1758217665505,1.62129421,4611.1,4611.0,1.6504]
[1758217666103,1.84129421,4611.1,4611.0,1.6504]
[1758217666407,1.62129421,4611.1,4611.0,1.6504]
[1758217666600,1.84129421,4611.1,4611.0,1.6504]
[1758217667201,1.62129421,4611.1,4611.0,1.6504]
[1758217667402,1.84129421,4611.1,4611.0,1.6504]
[1758217667601,1.62129421,4611.1,4611.0,1.6504]
[1758217668006,1.84129421,4611.1,4611.0,1.6504]
[1758217668204,2.47799421,4611.1,4611.0,1.6504]
[1758217668502,2.25799421,4611.1,4611.0,1.6504]
[1758217668701,2.47799421,4611.1,4611.0,1.6504]
[1758217669100,2.47799421,4611.1,4611.0,1.4026]
[1758217669300,2.25799421,4611.1,4611.0,1.4026]
[1758217669604,2.47799421,4611.1,4611.0,1.6504]
[1758217669799,1.84129421,4611.1,4610.8,0.6086]
[1758217670004,1.462,4610.9,4610.8,0.6086]
[1758217670298,2.25799421,4610.9,4610.8,1.0199]
[1758217671006,1.62129421,4610.9,4610.8,1.4242]
[1758217671208,1.84129421,4610.9,4610.8,1.4242]
[1758217672203,2.47799421,4610.9,4610.8,1.4026]
[1758217673007,2.47799421,4610.9,4610.5,0.587]
[1758217673303,0.8253,4610.6,4610.5,1.6504]
[1758217673502,1.62129421,4610.6,4610.5,1.6504]
[1758217674306,0.79599421,4610.6,4610.5,1.6504]
[1758217674508,0.56741516,4610.6,4610.5,1.6504]
[1758217674799,0.22,4611.0,4610.6,0.5772]
[1758217675003,0.617,4611.0,4610.9,1.3793]
[1758217675201,2.39128161,4611.0,4610.9,0.9897]
[1758217675412,1.3739,4610.7,4610.6,0.5772]
[1758217675595,1.94229737,4610.7,4610.6,0.5772]
[1758217675905,2.39127139,4610.7,4610.6,0.9897]
[1758217677006,2.39127139,4610.7,4610.6,1.3793]
[1758217678103,1.79877139,4610.7,4610.6,1.3793]
[1758217678898,1.01737139,4610.7,4610.6,1.3793]
[1758217679099,1.41437139,4610.7,4610.6,1.3793]
[1758217679909,0.79737139,4610.7,4610.6,1.3793]
[1758217680706,0.79737139,4610.7,4610.6,5.76947]
[1758217680911,0.56839737,4610.7,4610.6,5.76947]
[1758217681114,0.56839737,4610.7,4610.6,5.3793]
[1758217681803,0.79765662,4610.7,4610.6,1.3793]
[1758217682112,1.57905662,4610.7,4610.6,1.3793]
[1758217682312,1.19465662,4610.7,4610.6,1.3793]
[1758217682811,2.17155662,4610.7,4610.6,1.3793]
[1758217683820,2.17155662,4610.7,4610.6,0.9897]
[1758217684215,1.57905662,4610.7,4610.6,1.3793]
[1758217684413,0.79765662,4610.7,4610.6,1.3793]
[1758217684616,1.19465662,4610.7,4610.6,1.3793]
[1758217684820,1.57905662,4610.7,4610.6,1.3793]
[1758217688413,0.79765662,4610.7,4610.6,1.3793]
[1758217688620,0.79770436,4610.7,4610.6,1.3793]
[1758217689421,1.20410436,4610.7,4610.6,1.3793]
[1758217689622,1.58600436,4610.7,4610.6,1.3793]
[1758217689816,0.79770436,4610.7,4610.6,1.3793]
[1758217694122,0.5963,4610.6,4610.5,0.578]
[1758217694421,1.5779,4610.5,4610.4,0.0216]
[1758217694614,2.18230436,4610.5,4610.4,0.0216]
[1758217694816,2.18230436,4610.5,4610.4,0.3849]
[1758217695018,2.18230436,4610.5,4610.4,0.9629]
[1758217695426,2.18230436,4610.5,4610.4,0.578]
[1758217696331,2.18230436,4610.5,4610.4,1.3693]
[1758217697622,0.7883,4610.3,4610.2,0.0216]
[1758217697823,2.18230436,4610.3,4610.2,0.0216]
[1758217698030,6.18230436,4610.3,4610.2,0.0216]
[1758217698330,42.38600436,4610.3,4610.2,1.3909]
[1758217698523,1.58600436,4610.3,4610.2,1.3909]
[1758217699632,1.58600436,4610.3,4610.2,1.3693]
[1758217700332,1.20410436,4610.3,4610.2,1.3693]
[1758217701031,1.58600436,4610.3,4610.2,1.3693]
[1758217703634,1.20410436,4610.3,4610.2,1.3693]
[1758217705726,0.97479737,4610.3,4610.2,1.3693]
[1758217705932,1.19536525,4610.3,4610.2,1.3693]
[1758217707935,0.5963,4611.2,4611.0,0.2412]
[1758217708137,0.7883,4611.2,4611.1,1.3693]
[1758217708437,0.22059862,4611.2,4611.1,1.3693]
[1758217709234,0.4064,4611.2,4611.1,1.3693]
[1758217711841,0.7883,4611.2,4611.1,1.3693]
[1758217712044,1.00882497,4611.2,4610.7,3.2078]
[1758217712244,0.22052497,4611.1,4610.8,0.578]
[1758217712445,0.7883,4610.9,4610.8,1.3693]
[1758217713644,1.0083,4611.4,4611.3,0.7913]
[1758217713951,1.82511689,4611.4,4611.3,0.9629]
[1758217714146,1.82511689,4611.4,4611.0,0.2412]
[1758217714347,1.3846,4611.2,4611.1,0.578]
[1758217714555,0.7883,4610.7,4610.6,0.9629]
[1758217714748,1.00881689,4610.7,4610.6,1.3693]
[1758217715252,1.60511689,4610.7,4610.6,1.3693]
[1758217716253,1.00881689,4610.7,4610.6,1.3693]
[1758217716949,0.7883,4610.7,4610.6,1.3693]
[1758217717149,1.60464684,4610.7,4610.6,0.9629]
[1758217717648,1.00874684,4610.7,4610.6,1.3457]
[1758217717857,1.64034684,4610.7,4610.6,1.3457]
[1758217718158,1.64034684,4610.7,4610.6,0.9629]
[1758217718360,1.64034684,4610.7,4610.6,1.3457]
[1758217718550,1.64034684,4610.7,4610.6,0.9629]
[1758217719256,0.22044684,4610.7,4610.6,1.3457]
[1758217719448,0.22044684,4610.7,4610.6,5.56258999]
[1758217719645,0.4145,4611.6,4611.5,0.6155]
[1758217719947,0.77707403,4611.6,4611.5,1.6072]
[1758217721454,0.77707403,4611.6,4611.5,4.815]
[1758217721853,0.5566045,4611.6,4611.5,4.815]
[1758217723162,1.4199,4612.6,4612.5,0.3893]
[1758217723369,1.4199,4612.6,4612.5,1.6072]
[1758217723370,2.4164682,4612.6,4612.5,1.6072]
[1758217723962,1.4199,4612.1,4612.0,0.8351]
[1758217724162,2.1964682,4612.1,4612.0,1.2244]
[1758217724465,1.6005682,4612.1,4612.0,1.6072]
[1758217724663,1.59966025,4612.1,4612.0,1.6072]
[1758217725263,2.19556025,4612.1,4612.0,1.6072]
[1758217730772,2.1932809,4612.1,4612.0,0.9917]
[1758217731058,0.824,4611.2,4611.1,0.9811]
[1758217731264,0.55532192,4611.2,4611.1,0.9811]
[1758217731459,0.55532192,4611.5,4611.2,0.6024]
[1758217731658,0.824,4611.3,4611.2,1.3745]
[1758217731858,1.97522192,4611.3,4611.2,0.9917]
[1758217732060,1.97522192,4611.3,4611.0,3.4405]
[1758217732253,1.4199,4611.1,4610.7,0.22]
[1758217732463,1.4199,4610.9,4610.8,0.9917]
[1758217732661,1.97522192,4610.9,4610.8,0.9917]
[1758217733862,1.37932192,4610.9,4610.8,1.367]
[1758217734063,0.55532192,4610.9,4610.8,1.367]
[1758217734259,0.55532192,4611.3,4610.8,0.7646]
[1758217734459,0.55563771,4611.2,4611.1,1.3451]
[1758217737668,1.32463771,4611.2,4611.1,1.3451]
[1758217737868,0.385,4610.7,4610.6,0.9728]
[1758217738268,0.94063771,4610.7,4610.6,0.9728]
[1758217738565,0.94063771,4610.7,4610.6,1.5651]
[1758217738959,1.32463771,4610.7,4610.6,1.5651]
[1758217739261,1.92103771,4610.7,4610.6,1.5651]
[1758217739560,0.94063771,4610.7,4610.6,1.5651]
[1758217739865,0.55563771,4610.7,4610.6,1.5651]
[1758217740166,1.5854,4611.4,4611.3,0.9698]
[1758217740362,2.57670022,4611.4,4611.3,0.9698]
[1758217740759,2.35983022,4611.4,4611.3,0.9698]
[1758217740959,1.76343022,4611.4,4611.3,1.3451]
[1758217741261,0.77443022,4611.4,4611.3,1.3451]
[1758217741569,0.55612795,4611.4,4611.3,1.3451]
[1758217742566,1.32512795,4611.4,4611.3,1.3451]
[1758217742767,0.94112795,4611.4,4611.3,1.3451]
[1758217742957,0.55612795,4611.4,4611.3,1.3451]
[1758217749669,0.55612795,4611.4,4611.3,1.73521]
[1758217750972,0.55612795,4611.4,4611.3,1.3451]
[1758217752574,0.55612795,4611.4,4611.3,1.73521]
[1758217753075,0.55612795,4611.4,4611.3,1.3451]
[1758217753776,0.96032795,4611.4,4611.3,1.3451]
[1758217753973,1.34402795,4611.4,4611.3,1.3451]
[1758217754175,0.55612795,4611.4,4611.3,1.73521]
[1758217754570,0.77475956,4611.4,4611.3,1.73521]
[1758217755374,0.4042,4612.8,4612.7,1.345]
[1758217755575,0.4042,4613.4,4613.3,1.345]
[1758217756580,1.3868,4613.4,4613.3,1.345]
[1758217756780,0.7879,4613.4,4613.3,1.345]
[1758217757781,1.3868,4613.4,4613.3,1.345]
[1758217758181,0.7879,4613.4,4613.3,1.345]
[1758217761580,3.2078,4613.8,4613.5,0.2448]
[1758217761885,3.9957,4613.8,4613.7,1.345]
[1758217762288,4.5946,4613.8,4613.7,1.345]
[1758217763181,4.5946,4613.8,4613.7,0.9557]
[1758217763383,4.5946,4613.8,4613.2,0.5837]
[1758217764389,4.5946,4613.8,4613.2,3.7915]
[1758217764687,0.7879,4613.4,4613.3,0.9557]
[1758217764891,1.3868,4613.4,4613.3,1.345]
[1758217765895,0.7879,4613.4,4613.3,1.345]
[1758217766184,3.2078,4613.8,4613.7,0.372]
[1758217766185,3.612,4613.8,4613.7,0.372]
[1758217766390,4.5946,4613.8,4613.7,1.345]
[1758217766590,4.5946,4613.8,4613.7,0.9557]
[1758217766792,4.5946,4613.8,4613.7,0.5837]
[1758217766984,4.5946,4613.8,4613.5,0.5837]
[1758217767385,1.3868,4613.6,4613.5,0.5837]
[1758217767586,2.15833535,4613.6,4613.5,0.9557]
[1758217769299,2.15833535,4613.6,4613.5,0.5837]
[1758217769996,2.15833535,4613.6,4613.5,0.9557]
[1758217771596,2.15833535,4613.6,4613.5,0.5837]
[1758217771987,2.15833535,4613.6,4613.5,0.9557]
[1758217772698,2.15833535,4613.6,4613.5,0.5837]
[1758217773096,0.4042,4613.3,4613.2,3.2078]
[1758217773300,0.7879,4613.3,4613.2,1.345]
[1758217773599,1.34083822,4613.3,4613.2,1.345]
[1758217775998,1.93203822,4613.3,4613.2,1.345]
[1758217776200,1.93203822,4613.3,4613.1,0.0216]
[1758217776495,2.14797036,4613.2,4613.1,0.0216]
[1758217776895,1.33793822,4613.2,4612.6,3.2078]
[1758217777102,0.4021,4612.8,4612.7,1.3462]
[1758217777399,0.95503822,4612.8,4612.7,1.3462]
[1758217778296,1.33793822,4612.8,4612.7,1.3462]
[1758217782301,1.92913822,4612.8,4612.7,1.3462]
[1758217783501,1.33793822,4612.8,4612.7,1.3462]
[1758217784101,1.33793822,4612.8,4612.7,1.5662]
[1758217784102,0.55293822,4612.8,4612.7,1.5662]
[1758217784302,0.55293822,4612.8,4612.7,1.0084]
[1758217784502,0.5912,4613.3,4612.7,1.0084]
[1758217784702,0.77234564,4613.2,4613.1,0.7884]
[1758217784904,0.77234564,4613.2,4613.1,1.3462]
[1758217785206,0.77234564,4613.2,4613.1,4.554]
[1758217787204,0.77234564,4613.2,4613.1,4.774]
[1758217788408,1.17444564,4613.2,4613.1,4.774]
[1758217788602,2.14854564,4613.2,4613.1,4.774]
[1758217788803,1.17444564,4613.2,4613.1,4.774]
[1758217789604,2.14854564,4613.2,4613.1,4.774]
[1758217789809,2.15105626,4613.2,4613.1,4.774]
[1758217790011,1.55985626,4613.2,4613.1,4.774]
[1758217790711,0.77485626,4613.2,4613.1,4.774]
[1758217791404,1.17695626,4613.2,4613.1,4.774]
[1758217792611,2.15105626,4613.2,4613.1,4.554]
[1758217793501,1.55985626,4613.2,4613.1,4.554]
[1758217794403,1.55985626,4613.2,4613.1,1.3462]
[1758217794608,2.14585626,4613.2,4613.1,1.3462]
[1758217794906,1.55985626,4613.2,4613.1,1.3462]
[1758217795105,0.77485626,4613.2,4613.1,1.3462]
[1758217796510,2.09815626,4613.2,4613.1,1.3462]
[1758217796710,2.09815626,4613.2,4613.1,1.5662]
[1758217797811,1.51215626,4613.2,4613.1,1.5662]
[1758217798813,0.77485626,4613.2,4613.1,4.774]
[1758217799414,0.55544884,4613.2,4613.1,4.774]
[1758217800210,40.8,4614.1,4613.1,8.99077]
[1758217800406,0.3699,4614.1,4614.0,1.5413]
[1758217800609,0.59008254,4614.1,4614.0,1.5413]
[1758217801505,0.22018254,4614.1,4614.0,1.5413]
[1758217802012,0.59008254,4614.1,4614.0,1.5413]
[1758217802914,0.22018254,4614.1,4614.0,1.5413]
[1758217804413,0.22018254,4614.1,4614.0,1.7613]
[1758217805117,1.3233,4615.0,4614.9,0.9254]
[1758217805318,1.76316393,4615.0,4614.9,0.9254]
[1758217805519,1.97985393,4615.0,4614.9,0.5542]
[1758217805713,1.94536393,4615.0,4614.6,0.5434]
[1758217806017,1.94536393,4615.0,4614.5,1.5166]
[1758217806018,0.7785,4614.6,4614.5,1.5166]
[1758217806318,0.99836393,4614.6,4614.5,1.5166]
[1758217807824,0.61696393,4614.6,4614.5,1.5166]
[1758217811524,0.3971,4614.6,4614.5,1.5166]
[1758217812321,0.94881932,4614.6,4614.5,1.5166]
[1758217812828,1.92791932,4614.6,4614.5,1.5166]
[1758217813924,2.14737388,4614.6,4614.5,0.5434]
[1758217814121,0.5977,4614.5,4614.3,3.2294]
[1758217814322,1.92791932,4614.4,4614.3,0.0216]
[1758217814732,1.92791932,4614.4,4614.3,0.9183]
[1758217815031,2.14783664,4614.4,4614.3,1.2833]
[1758217815727,0.55171932,4614.4,4614.3,4.4911]
[1758217819629,0.94881932,4614.4,4614.3,4.4911]
[1758217819833,1.33021932,4614.4,4614.3,4.4911]
[1758217820236,0.55171932,4614.4,4614.3,4.4911]
[1758217821633,1.92791932,4614.4,4614.3,4.4911]
[1758217821829,0.55171932,4614.4,4614.3,4.4911]
[1758217823234,1.92791932,4614.4,4614.3,4.4911]
[1758217823436,6.14463932,4614.4,4614.1,0.0216]
[1758217823629,0.3971,4614.2,4614.1,0.3866]
[1758217823825,0.94881932,4614.2,4614.1,3.9693]
[1758217824028,0.94881932,4614.2,4614.1,3.9477]
[1758217824335,1.33021932,4614.2,4614.1,4.4911]
[1758217825333,0.55171932,4614.2,4614.1,4.4911]
[1758217825837,0.55171932,4614.2,4614.1,4.7111]
[1758217829036,0.94881932,4614.2,4614.1,4.7111]
[1758217829232,0.55171932,4614.2,4614.1,4.7111]
[1758217831641,0.94881932,4614.2,4614.1,4.7111]
[1758217831840,2.14835206,4614.2,4614.1,4.4911]
[1758217832036,2.14835206,4614.2,4614.1,3.7512]
[1758217832342,1.55065206,4614.2,4614.1,4.4911]
[1758217832840,0.77215206,4614.2,4614.1,4.7111]
[1758217833138,2.14835206,4614.2,4614.1,4.7111]
[1758217833442,1.16925206,4614.2,4614.1,4.7111]
[1758217833640,0.77215206,4614.2,4614.1,4.7111]
[1758217833940,1.16925206,4614.2,4614.1,4.7111]
[1758217835043,1.55065206,4614.2,4614.1,4.7111]
[1758217835244,0.77215206,4614.2,4614.1,4.7111]
[1758217836135,0.22043274,4614.2,4614.1,4.7111]
[1758217836737,0.58833274,4614.2,4614.1,4.7111]
[1758217836940,0.22043274,4614.2,4614.1,4.7111]